[Event "*** Titled Tuesday 3|2 Blitz"]
[Site "Chess.com"]
[Date "2016.07.05"]
[Round "1"]
[White "oskariot"]
[Black "GeorgMeier"]
[Result "0-1"]
[WhiteElo "2273"]
[BlackElo "2649"]
[TimeControl "180+2"]
[EndTime "17:02:08 PDT"]
[Termination "GeorgMeier won by resignation"]

1. c4 {[%clk 0:02:59]} 1... Nf6 {[%clk 0:03:01.3]} 2. Nf3 {[%clk 0:03:00]} 2...
e6 {[%clk 0:03:02.8]} 3. g3 {[%clk 0:03:00.5]} 3... d5 {[%clk 0:03:04.2]} 4. Bg2
{[%clk 0:03:01.9]} 4... dxc4 {[%clk 0:03:05.8]} 5. O-O {[%clk 0:03:01.1]} 5...
a6 {[%clk 0:03:07]} 6. a4 {[%clk 0:03:02.1]} 6... Nc6 {[%clk 0:03:07.9]} 7. Qc2
{[%clk 0:03:00.1]} 7... Na5 {[%clk 0:03:05.3]} 8. Na3 {[%clk 0:02:36.6]} 8...
Qd5 {[%clk 0:03:06.4]} 9. Rd1 {[%clk 0:02:11.9]} 9... Bd7 {[%clk 0:03:06.5]} 10.
d3 {[%clk 0:02:07.2]} 10... Nb3 {[%clk 0:03:07.8]} 11. dxc4 {[%clk 0:02:03.6]}
11... Nxa1 {[%clk 0:03:07.8]} 12. cxd5 {[%clk 0:02:03.9]} 12... Nxc2 {[%clk
0:03:08.5]} 13. Nxc2 {[%clk 0:02:04.2]} 13... Bxa4 {[%clk 0:03:09.5]} 0-1

[Event "*** Titled Tuesday 3|2 Blitz"]
[Site "Chess.com"]
[Date "2016.07.05"]
[Round "1"]
[White "jcibarra"]
[Black "LonesomeGeorge1"]
[Result "1-0"]
[WhiteElo "2651"]
[BlackElo "2283"]
[TimeControl "180+2"]
[EndTime "17:04:57 PDT"]
[Termination "jcibarra won by checkmate"]

1. e4 {[%clk 0:02:55]} 1... c5 {[%clk 0:03:00.5]} 2. Nf3 {[%clk 0:02:56.1]} 2...
e6 {[%clk 0:03:01.4]} 3. d4 {[%clk 0:02:57.3]} 3... cxd4 {[%clk 0:03:03.3]} 4.
Nxd4 {[%clk 0:02:59.2]} 4... Nc6 {[%clk 0:03:04.7]} 5. Nc3 {[%clk 0:02:59.9]}
5... Qc7 {[%clk 0:03:06]} 6. Be3 {[%clk 0:03:01.3]} 6... a6 {[%clk 0:03:05.9]}
7. Qd2 {[%clk 0:03:02.6]} 7... Nf6 {[%clk 0:03:07.2]} 8. O-O-O {[%clk
0:03:03.8]} 8... Be7 {[%clk 0:03:08.1]} 9. f3 {[%clk 0:03:04.6]} 9... b5 {[%clk
0:03:07.6]} 10. g4 {[%clk 0:03:05.7]} 10... Nxd4 {[%clk 0:03:08.8]} 11. Bxd4
{[%clk 0:03:06.9]} 11... Bb7 {[%clk 0:03:10.4]} 12. g5 {[%clk 0:03:08.4]} 12...
Nh5 {[%clk 0:03:11.6]} 13. Be5 {[%clk 0:03:10]} 13... Qxe5 {[%clk 0:03:11.6]}
14. Qxd7+ {[%clk 0:03:11.5]} 14... Kf8 {[%clk 0:03:11.8]} 15. Qxb7 {[%clk
0:03:13.4]} 15... Qb8 {[%clk 0:03:10.2]} 16. Qxb8+ {[%clk 0:02:58.4]} 16... Rxb8
{[%clk 0:03:12.1]} 17. Rg1 {[%clk 0:02:59.4]} 17... h6 {[%clk 0:03:10.4]} 18. g6
{[%clk 0:02:55.7]} 18... fxg6 {[%clk 0:02:56.9]} 19. Kb1 {[%clk 0:02:47.3]}
19... Nf4 {[%clk 0:02:54.1]} 20. Ne2 {[%clk 0:02:45.4]} 20... Nxe2 {[%clk
0:02:33]} 21. Bxe2 {[%clk 0:02:47.3]} 21... Kf7 {[%clk 0:02:33.2]} 22. f4 {[%clk
0:02:41.2]} 22... Rhd8 {[%clk 0:02:31.4]} 23. Bd3 {[%clk 0:02:42.1]} 23... g5
{[%clk 0:02:12.9]} 24. Rdf1 {[%clk 0:02:32.7]} 24... gxf4 {[%clk 0:02:04.9]} 25.
Rxf4+ {[%clk 0:02:34.6]} 25... Kg8 {[%clk 0:02:06.3]} 26. Rg6 {[%clk 0:02:32.8]}
26... Rb6 {[%clk 0:01:59.8]} 27. Rfg4 {[%clk 0:02:27.5]} 27... Kh8 {[%clk
0:01:33.4]} 28. Rxg7 {[%clk 0:02:23.6]} 28... Bf6 {[%clk 0:01:24.3]} 29. Rf7
{[%clk 0:02:18.8]} 29... Bg5 {[%clk 0:01:16.1]} 30. h4 {[%clk 0:02:16.6]} 30...
Be3 {[%clk 0:01:17.1]} 31. e5 {[%clk 0:02:17.5]} 31... Rg8 {[%clk 0:01:13]} 32.
Rh7# {[%clk 0:02:17.2]} 1-0

[Event "*** Titled Tuesday 3|2 Blitz"]
[Site "Chess.com"]
[Date "2016.07.05"]
[Round "1"]
[White "chessking2151"]
[Black "Hikaru"]
[Result "0-1"]
[WhiteElo "2336"]
[BlackElo "3000"]
[TimeControl "180+2"]
[EndTime "17:06:11 PDT"]
[Termination "Hikaru won by resignation"]

1. e4 {[%clk 0:02:57.6]} 1... e5 {[%clk 0:03:00.2]} 2. Nf3 {[%clk 0:02:57.9]}
2... Nc6 {[%clk 0:03:01.9]} 3. Bb5 {[%clk 0:02:59.4]} 3... Nf6 {[%clk 0:03:03]}
4. O-O {[%clk 0:02:57.9]} 4... d6 {[%clk 0:02:59.9]} 5. d4 {[%clk 0:02:50.2]}
5... exd4 {[%clk 0:02:58.3]} 6. Nxd4 {[%clk 0:02:51.4]} 6... Bd7 {[%clk
0:02:59.9]} 7. Nxc6 {[%clk 0:02:52]} 7... bxc6 {[%clk 0:03:00.4]} 8. Bd3 {[%clk
0:02:53.6]} 8... g6 {[%clk 0:03:00.7]} 9. c4 {[%clk 0:02:55.1]} 9... Bg7 {[%clk
0:03:02.1]} 10. Nc3 {[%clk 0:02:56.7]} 10... O-O {[%clk 0:03:03.8]} 11. f3
{[%clk 0:02:57.2]} 11... c5 {[%clk 0:03:03.4]} 12. Be3 {[%clk 0:02:58]} 12...
Rb8 {[%clk 0:03:03]} 13. Rb1 {[%clk 0:02:58.5]} 13... Be6 {[%clk 0:03:04]} 14.
Qa4 {[%clk 0:02:58.1]} 14... Nd7 {[%clk 0:03:04.2]} 15. Rfc1 {[%clk 0:02:58.3]}
15... Ne5 {[%clk 0:02:58.5]} 16. Bf1 {[%clk 0:02:57.6]} 16... Rb4 {[%clk
0:02:55.6]} 17. Qxa7 {[%clk 0:02:56.8]} 17... Bxc4 {[%clk 0:02:56.8]} 18. a3
{[%clk 0:02:55]} 18... Nc6 {[%clk 0:02:54.2]} 19. axb4 {[%clk 0:02:50.1]} 19...
Nxa7 {[%clk 0:02:55.4]} 20. Bxc4 {[%clk 0:02:51.3]} 20... cxb4 {[%clk
0:02:49.1]} 21. Nd5 {[%clk 0:02:50.2]} 21... Nc6 {[%clk 0:02:50.4]} 22. Bf1
{[%clk 0:02:49.9]} 22... Nd4 {[%clk 0:02:42.9]} 23. Nxb4 {[%clk 0:02:46.3]}
23... c5 {[%clk 0:02:43.4]} 24. Nd5 {[%clk 0:02:47.5]} 24... Ne6 {[%clk
0:02:43]} 25. b4 {[%clk 0:02:48.4]} 25... cxb4 {[%clk 0:02:38.1]} 26. Rxb4
{[%clk 0:02:50.3]} 26... h5 {[%clk 0:02:36.9]} 27. Rbc4 {[%clk 0:02:46.6]} 27...
Kh7 {[%clk 0:02:37.5]} 28. Be2 {[%clk 0:02:44.5]} 28... Bh6 {[%clk 0:02:36]} 29.
f4 {[%clk 0:02:40.3]} 29... Re8 {[%clk 0:02:32.9]} 30. g3 {[%clk 0:02:39.8]}
30... Bg7 {[%clk 0:02:28.4]} 31. Kf2 {[%clk 0:02:37.6]} 31... Nc5 {[%clk
0:02:26.9]} 32. Bxc5 {[%clk 0:02:34.6]} 32... dxc5 {[%clk 0:02:28.8]} 33. Bf3
{[%clk 0:02:32.2]} 33... Bd4+ {[%clk 0:02:29.8]} 34. Kg2 {[%clk 0:02:33.5]}
34... Kg7 {[%clk 0:02:15.3]} 35. R1c2 {[%clk 0:02:33.8]} 35... Qa5 {[%clk
0:02:15.4]} 36. Re2 {[%clk 0:02:19.3]} 36... Qa1 {[%clk 0:02:15]} 37. Rcc2
{[%clk 0:02:11.9]} 37... h4 {[%clk 0:02:06.2]} 38. g4 {[%clk 0:01:44.1]} 38...
h3+ {[%clk 0:02:05.5]} 39. Kxh3 {[%clk 0:01:42.1]} 39... Rh8+ {[%clk 0:01:59.6]}
40. Kg3 {[%clk 0:01:24.1]} 40... Qg1+ {[%clk 0:02:01.5]} 41. Rg2 {[%clk
0:01:14.8]} 41... Qe1+ {[%clk 0:02:02.1]} 42. Rcf2 {[%clk 0:01:14.6]} 42...
Bxf2+ {[%clk 0:02:04]} 43. Rxf2 {[%clk 0:01:16.1]} 43... Rxh2 {[%clk 0:02:04.9]}
44. Kxh2 {[%clk 0:01:17]} 44... Qxf2+ {[%clk 0:02:05.6]} 45. Bg2 {[%clk
0:01:18.9]} 45... c4 {[%clk 0:02:07]} 0-1

[Event "*** Titled Tuesday 3|2 Blitz"]
[Site "Chess.com"]
[Date "2016.07.05"]
[Round "1"]
[White "Boryboy"]
[Black "Quiet_Desperation"]
[Result "1-0"]
[WhiteElo "2500"]
[BlackElo "2168"]
[TimeControl "180+2"]
[EndTime "17:07:12 PDT"]
[Termination "Boryboy won by resignation"]

1. d4 {[%clk 0:03:01.7]} 1... Nf6 {[%clk 0:02:59.1]} 2. Nf3 {[%clk 0:03:02.6]}
2... e6 {[%clk 0:03:00.5]} 3. g3 {[%clk 0:03:02.7]} 3... d5 {[%clk 0:02:59.8]}
4. c4 {[%clk 0:03:03.5]} 4... Be7 {[%clk 0:03:01]} 5. Bg2 {[%clk 0:03:04.1]}
5... O-O {[%clk 0:03:02.6]} 6. O-O {[%clk 0:03:05.7]} 6... dxc4 {[%clk
0:03:04.2]} 7. Ne5 {[%clk 0:03:06.7]} 7... a6 {[%clk 0:03:01]} 8. Nxc4 {[%clk
0:03:05]} 8... Nbd7 {[%clk 0:03:01.6]} 9. Nc3 {[%clk 0:03:03.8]} 9... c5 {[%clk
0:02:55.7]} 10. dxc5 {[%clk 0:03:02.7]} 10... Bxc5 {[%clk 0:02:51]} 11. Bf4
{[%clk 0:02:57.4]} 11... Nh5 {[%clk 0:02:22.9]} 12. Bd6 {[%clk 0:02:56.2]} 12...
Bxd6 {[%clk 0:02:21.7]} 13. Qxd6 {[%clk 0:02:51.2]} 13... Ndf6 {[%clk
0:02:13.5]} 14. Rfd1 {[%clk 0:02:50.4]} 14... Qxd6 {[%clk 0:02:14.1]} 15. Rxd6
{[%clk 0:02:49.3]} 15... Rb8 {[%clk 0:02:13.5]} 16. Nb6 {[%clk 0:02:50]} 16...
e5 {[%clk 0:02:08]} 17. Nca4 {[%clk 0:02:29.8]} 17... Be6 {[%clk 0:01:31.7]} 18.
Nc5 {[%clk 0:02:26.1]} 18... Rfd8 {[%clk 0:01:31]} 19. Rxd8+ {[%clk 0:02:26.9]}
19... Rxd8 {[%clk 0:01:31.8]} 20. Bxb7 {[%clk 0:02:21.3]} 20... Bh3 {[%clk
0:01:28.6]} 21. Bxa6 {[%clk 0:02:17.4]} 21... h6 {[%clk 0:01:23.6]} 22. a4
{[%clk 0:02:18.6]} 22... Rd2 {[%clk 0:01:23.9]} 23. a5 {[%clk 0:02:14.8]} 23...
Rxb2 {[%clk 0:01:23.9]} 24. Bd3 {[%clk 0:02:15.9]} 24... e4 {[%clk 0:01:19.1]}
25. Nxe4 {[%clk 0:02:16.4]} 25... Nxe4 {[%clk 0:01:20.4]} 26. Bxe4 {[%clk
0:02:18.3]} 26... Rxe2 {[%clk 0:01:21.6]} 27. a6 {[%clk 0:02:18.5]} 27... Rxe4
{[%clk 0:01:17.8]} 28. a7 {[%clk 0:02:15]} 28... Re8 {[%clk 0:01:09.4]} 29. a8=Q
{[%clk 0:02:13.8]} 29... Rxa8 {[%clk 0:01:11.1]} 30. Rxa8+ {[%clk 0:02:14.8]}
30... Kh7 {[%clk 0:01:11.6]} 31. Ra7 {[%clk 0:02:15.9]} 31... Be6 {[%clk
0:01:08.8]} 32. Nd7 {[%clk 0:02:15]} 32... Kg6 {[%clk 0:01:01.1]} 33. f3 {[%clk
0:02:11.3]} 33... Bxd7 {[%clk 0:00:50.4]} 34. Rxd7 {[%clk 0:02:11]} 34... Nf6
{[%clk 0:00:51.7]} 35. Ra7 {[%clk 0:02:12.3]} 35... Nh5 {[%clk 0:00:50.3]} 36.
Kf2 {[%clk 0:02:14.2]} 36... Nf6 {[%clk 0:00:49.5]} 37. Ke3 {[%clk 0:02:15.3]}
37... Nh5 {[%clk 0:00:51]} 38. Kd4 {[%clk 0:02:15.3]} 38... f6 {[%clk
0:00:52.2]} 39. Ke4 {[%clk 0:02:14.1]} 39... f5+ {[%clk 0:00:44.9]} 40. Ke5
{[%clk 0:02:15.5]} 40... Nf6 {[%clk 0:00:43.9]} 41. Ra6 {[%clk 0:02:16.6]} 41...
Kg5 {[%clk 0:00:43.9]} 42. Ra7 {[%clk 0:01:58.8]} 42... Kg6 {[%clk 0:00:26]} 43.
Ke6 {[%clk 0:01:52.2]} 43... h5 {[%clk 0:00:24.8]} 44. h4 {[%clk 0:01:52.1]}
44... Nh7 {[%clk 0:00:23.1]} 45. Ke5 {[%clk 0:01:51.5]} 45... Nf6 {[%clk
0:00:24.2]} 46. Ra6 {[%clk 0:01:52.5]} 1-0

[Event "*** Titled Tuesday 3|2 Blitz"]
[Site "Chess.com"]
[Date "2016.07.05"]
[Round "1"]
[White "Journey_to_GrandMaster_YT"]
[Black "SwiftyMcBishop"]
[Result "1-0"]
[WhiteElo "2437"]
[BlackElo "2044"]
[TimeControl "180+2"]
[EndTime "17:07:23 PDT"]
[Termination "Journey_to_GrandMaster_YT won by resignation"]

1. d4 {[%clk 0:02:58.6]} 1... d5 {[%clk 0:02:51.8]} 2. Nf3 {[%clk 0:02:58.8]}
2... Nf6 {[%clk 0:02:52.4]} 3. e3 {[%clk 0:02:57.9]} 3... e6 {[%clk 0:02:51.2]}
4. Bd3 {[%clk 0:02:54.8]} 4... Bd6 {[%clk 0:02:52]} 5. Nbd2 {[%clk 0:02:54.6]}
5... Nbd7 {[%clk 0:02:52.1]} 6. b3 {[%clk 0:02:52.6]} 6... Qe7 {[%clk
0:02:49.4]} 7. Bb2 {[%clk 0:02:52.5]} 7... e5 {[%clk 0:02:49.4]} 8. dxe5 {[%clk
0:02:51.1]} 8... Nxe5 {[%clk 0:02:51.3]} 9. Be2 {[%clk 0:02:37.6]} 9... Bf5
{[%clk 0:02:37.5]} 10. O-O {[%clk 0:02:37.1]} 10... O-O {[%clk 0:02:31.1]} 11.
Nd4 {[%clk 0:02:29]} 11... Bg6 {[%clk 0:02:10.9]} 12. Kh1 {[%clk 0:02:05.5]}
12... c6 {[%clk 0:02:02.6]} 13. f4 {[%clk 0:01:53.4]} 13... c5 {[%clk
0:01:30.4]} 14. Nb5 {[%clk 0:01:40.8]} 14... Neg4 {[%clk 0:00:44.3]} 15. Bxg4
{[%clk 0:01:35.6]} 15... Nxg4 {[%clk 0:00:43.9]} 16. Qxg4 {[%clk 0:01:35.6]}
16... f6 {[%clk 0:00:37.7]} 17. Nxd6 {[%clk 0:01:35.1]} 17... Qxd6 {[%clk
0:00:38.4]} 18. Rae1 {[%clk 0:01:30.5]} 18... Bxc2 {[%clk 0:00:31.7]} 19. e4
{[%clk 0:01:28.8]} 19... dxe4 {[%clk 0:00:22.1]} 20. Nxe4 {[%clk 0:01:28.9]}
20... Qa6 {[%clk 0:00:16.2]} 21. Nxc5 {[%clk 0:01:27.9]} 21... Qb5 {[%clk
0:00:17.5]} 22. Ne6 {[%clk 0:01:25.9]} 22... Rf7 {[%clk 0:00:18.9]} 23. Nd4
{[%clk 0:01:26.3]} 23... Qa6 {[%clk 0:00:18.2]} 24. Nxc2 {[%clk 0:01:25.5]}
24... Qd3 {[%clk 0:00:18.7]} 25. Nd4 {[%clk 0:01:22.4]} 25... Qd2 {[%clk
0:00:19.1]} 26. Re2 {[%clk 0:01:21]} 26... Qd3 {[%clk 0:00:19.6]} 27. Rfe1
{[%clk 0:01:20.2]} 27... Raf8 {[%clk 0:00:14.6]} 28. Nf5 {[%clk 0:01:20]} 28...
Kh8 {[%clk 0:00:06.5]} 29. Re8 {[%clk 0:01:17.3]} 29... g6 {[%clk 0:00:07.2]}
30. Nh6 {[%clk 0:01:11.9]} 30... Rxe8 {[%clk 0:00:06.1]} 31. Rxe8+ {[%clk
0:01:11.9]} 31... Kg7 {[%clk 0:00:07]} 32. Rg8+ {[%clk 0:01:10.8]} 1-0

[Event "*** Titled Tuesday 3|2 Blitz"]
[Site "Chess.com"]
[Date "2016.07.05"]
[Round "1"]
[White "theprosecution1"]
[Black "popov_m"]
[Result "0-1"]
[WhiteElo "2496"]
[BlackElo "2231"]
[TimeControl "180+2"]
[EndTime "17:07:30 PDT"]
[Termination "popov_m won by checkmate"]

1. e4 {[%clk 0:02:42.8]} 1... e6 {[%clk 0:03:00.6]} 2. d4 {[%clk 0:02:43.6]}
2... d5 {[%clk 0:02:59.2]} 3. Nc3 {[%clk 0:02:44.8]} 3... Bb4 {[%clk 0:03:00.3]}
4. e5 {[%clk 0:02:45.1]} 4... Ne7 {[%clk 0:03:01.5]} 5. a3 {[%clk 0:02:46.1]}
5... Bxc3+ {[%clk 0:03:03]} 6. bxc3 {[%clk 0:02:48]} 6... b6 {[%clk 0:03:04.6]}
7. a4 {[%clk 0:02:43.4]} 7... Ba6 {[%clk 0:03:02.8]} 8. Bxa6 {[%clk 0:02:43.3]}
8... Nxa6 {[%clk 0:03:04.7]} 9. Qd3 {[%clk 0:02:38.2]} 9... Nb8 {[%clk
0:02:56.9]} 10. a5 {[%clk 0:02:36.2]} 10... Nbc6 {[%clk 0:02:52.7]} 11. axb6
{[%clk 0:02:37.3]} 11... axb6 {[%clk 0:02:43]} 12. Rxa8 {[%clk 0:02:39.2]} 12...
Qxa8 {[%clk 0:02:44.2]} 13. Ne2 {[%clk 0:02:38.6]} 13... O-O {[%clk 0:02:23.2]}
14. O-O {[%clk 0:02:39.3]} 14... Qa4 {[%clk 0:02:23.3]} 15. Nf4 {[%clk
0:02:35.4]} 15... Ra8 {[%clk 0:02:19.9]} 16. Nh5 {[%clk 0:02:34.9]} 16... Nf5
{[%clk 0:02:03.2]} 17. g4 {[%clk 0:02:32]} 17... Nfe7 {[%clk 0:02:03.1]} 18. Bh6
{[%clk 0:02:27.7]} 18... gxh6 {[%clk 0:01:24.3]} 19. Nf6+ {[%clk 0:02:27.6]}
19... Kf8 {[%clk 0:01:25.7]} 20. Qxh7 {[%clk 0:02:29.5]} 20... Ng6 {[%clk
0:01:26.9]} 21. h4 {[%clk 0:02:26]} 21... Ke7 {[%clk 0:00:40.4]} 22. h5 {[%clk
0:02:25.8]} 22... Nf4 {[%clk 0:00:33.9]} 23. Qxh6 {[%clk 0:02:25.8]} 23... Nxd4
{[%clk 0:00:26.9]} 24. cxd4 {[%clk 0:02:18]} 24... Qxd4 {[%clk 0:00:27.9]} 25.
Qg7 {[%clk 0:01:32.6]} 25... Ra3 {[%clk 0:00:26.9]} 26. Ng8+ {[%clk 0:01:17.3]}
26... Kd7 {[%clk 0:00:21.4]} 27. Qxf7+ {[%clk 0:00:49.8]} 27... Kc6 {[%clk
0:00:22.5]} 28. Ne7+ {[%clk 0:00:46]} 28... Kb7 {[%clk 0:00:21.8]} 29. Qe8
{[%clk 0:00:45]} 29... Ne2+ {[%clk 0:00:12.7]} 30. Kh1 {[%clk 0:00:40.5]} 30...
Rh3+ {[%clk 0:00:13.1]} 31. Kg2 {[%clk 0:00:41.2]} 31... Qxg4# {[%clk
0:00:14.8]} 0-1

[Event "*** Titled Tuesday 3|2 Blitz"]
[Site "Chess.com"]
[Date "2016.07.05"]
[Round "1"]
[White "vellottiwizard"]
[Black "Zenzo"]
[Result "0-1"]
[WhiteElo "2532"]
[BlackElo "2339"]
[TimeControl "180+2"]
[EndTime "17:07:39 PDT"]
[Termination "Zenzo won by resignation"]

1. e4 {[%clk 0:02:59.7]} 1... e5 {[%clk 0:03:01.1]} 2. Nf3 {[%clk 0:03:00.4]}
2... Nc6 {[%clk 0:03:02.7]} 3. Bb5 {[%clk 0:03:02.1]} 3... a6 {[%clk 0:03:04.1]}
4. Ba4 {[%clk 0:03:03.8]} 4... Nge7 {[%clk 0:03:05.5]} 5. c3 {[%clk 0:03:03.1]}
5... g6 {[%clk 0:03:06.4]} 6. d4 {[%clk 0:03:03.2]} 6... exd4 {[%clk 0:03:08.3]}
7. cxd4 {[%clk 0:03:04.3]} 7... Bg7 {[%clk 0:03:09.6]} 8. O-O {[%clk 0:03:05]}
8... b5 {[%clk 0:03:10.5]} 9. Bb3 {[%clk 0:03:06]} 9... O-O {[%clk 0:03:12.2]}
10. d5 {[%clk 0:03:05]} 10... Na5 {[%clk 0:03:13.5]} 11. Bc2 {[%clk 0:03:06.3]}
11... d6 {[%clk 0:03:14.5]} 12. Bd2 {[%clk 0:03:07.1]} 12... Nc4 {[%clk
0:03:11.7]} 13. Bc3 {[%clk 0:03:08.1]} 13... Bg4 {[%clk 0:03:01.6]} 14. Bxg7
{[%clk 0:03:02.8]} 14... Kxg7 {[%clk 0:03:03.5]} 15. Qd4+ {[%clk 0:03:04.4]}
15... Kg8 {[%clk 0:03:04.7]} 16. b3 {[%clk 0:03:06]} 16... c5 {[%clk 0:02:46.6]}
17. dxc6 {[%clk 0:02:45.1]} 17... Nxc6 {[%clk 0:02:46.8]} 18. Qc3 {[%clk
0:02:46.7]} 18... Bxf3 {[%clk 0:02:39.5]} 19. bxc4 {[%clk 0:02:39.5]} 19... Be2
{[%clk 0:02:37.7]} 20. Re1 {[%clk 0:02:39.5]} 20... Bxc4 {[%clk 0:02:37.8]} 21.
Nd2 {[%clk 0:02:41.1]} 21... Qa5 {[%clk 0:02:31.5]} 22. Qe3 {[%clk 0:02:39.2]}
22... Be6 {[%clk 0:02:30.2]} 23. Nf3 {[%clk 0:02:39.9]} 23... Ne5 {[%clk
0:02:29.9]} 24. Nd4 {[%clk 0:02:39.5]} 24... Rfe8 {[%clk 0:02:22.7]} 25. Nxe6
{[%clk 0:02:31.4]} 25... Rxe6 {[%clk 0:02:23.2]} 26. Bb3 {[%clk 0:02:33.3]}
26... Re7 {[%clk 0:02:21.5]} 27. Rac1 {[%clk 0:02:30]} 27... Rd8 {[%clk
0:02:21]} 28. Bd5 {[%clk 0:02:29.3]} 28... Nd7 {[%clk 0:02:12.4]} 29. Qg5 {[%clk
0:02:26.7]} 29... Rde8 {[%clk 0:02:06]} 30. f3 {[%clk 0:02:26.9]} 30... Nc5
{[%clk 0:02:06]} 31. Red1 {[%clk 0:02:26.8]} 31... Qb6 {[%clk 0:01:50.7]} 32.
Kh1 {[%clk 0:02:27.4]} 32... a5 {[%clk 0:01:52.3]} 33. Qf6 {[%clk 0:02:26.1]}
33... Nd7 {[%clk 0:01:44.9]} 34. Qf4 {[%clk 0:02:24.3]} 34... Ne5 {[%clk
0:01:42]} 35. h4 {[%clk 0:02:25.2]} 35... Kg7 {[%clk 0:01:34.9]} 36. h5 {[%clk
0:02:25]} 36... gxh5 {[%clk 0:01:31.9]} 37. Qg5+ {[%clk 0:02:25.7]} 37... Ng6
{[%clk 0:01:33.2]} 38. Qxh5 {[%clk 0:02:25.4]} 38... Re5 {[%clk 0:01:31.6]} 39.
Qg4 {[%clk 0:02:24]} 39... Qe3 {[%clk 0:01:29.4]} 40. Rc7 {[%clk 0:02:18.4]}
40... R8e7 {[%clk 0:01:01.1]} 41. Rxe7 {[%clk 0:02:13.9]} 41... Rxe7 {[%clk
0:01:03]} 42. Rf1 {[%clk 0:01:46.4]} 42... Qf4 {[%clk 0:00:54.7]} 43. Qxf4
{[%clk 0:01:22.8]} 43... Nxf4 {[%clk 0:00:56.6]} 44. Rd1 {[%clk 0:01:24.5]}
44... Rc7 {[%clk 0:00:50.5]} 45. g3 {[%clk 0:01:25.6]} 45... Ne2 {[%clk
0:00:46.3]} 46. Rd2 {[%clk 0:01:18.8]} 46... Nxg3+ {[%clk 0:00:44.6]} 47. Kh2
{[%clk 0:01:13.8]} 47... Nf1+ {[%clk 0:00:45.6]} 0-1

[Event "*** Titled Tuesday 3|2 Blitz"]
[Site "Chess.com"]
[Date "2016.07.05"]
[Round "1"]
[White "Viaje"]
[Black "pKiLz5Rn9b"]
[Result "1-0"]
[WhiteElo "2117"]
[BlackElo "2423"]
[TimeControl "180+2"]
[EndTime "17:07:44 PDT"]
[Termination "Viaje won by resignation"]

1. d4 {[%clk 0:03:01.9]} 1... e6 {[%clk 0:03:00.7]} 2. e4 {[%clk 0:03:01.9]}
2... d5 {[%clk 0:03:01.5]} 3. exd5 {[%clk 0:03:03.8]} 3... exd5 {[%clk
0:03:02.5]} 4. Nf3 {[%clk 0:03:05.4]} 4... Bd6 {[%clk 0:03:03.7]} 5. c4 {[%clk
0:03:06.7]} 5... dxc4 {[%clk 0:03:03.4]} 6. Bxc4 {[%clk 0:03:07]} 6... Ne7
{[%clk 0:03:04.6]} 7. O-O {[%clk 0:03:07.2]} 7... O-O {[%clk 0:03:04]} 8. Nc3
{[%clk 0:03:07.9]} 8... Nbc6 {[%clk 0:02:54.6]} 9. h3 {[%clk 0:03:07.8]} 9...
Bf5 {[%clk 0:02:54.7]} 10. Be3 {[%clk 0:02:52]} 10... Bg6 {[%clk 0:02:55.2]} 11.
Nh4 {[%clk 0:02:50.3]} 11... Nf5 {[%clk 0:02:53.9]} 12. Nxg6 {[%clk 0:02:37.5]}
12... hxg6 {[%clk 0:02:54.5]} 13. Qg4 {[%clk 0:02:38.3]} 13... Kh7 {[%clk
0:02:25]} 14. Ne4 {[%clk 0:02:28.3]} 14... Be7 {[%clk 0:02:22.7]} 15. Rad1
{[%clk 0:02:14.1]} 15... Nh6 {[%clk 0:02:17.2]} 16. Qf3 {[%clk 0:02:08.9]} 16...
f5 {[%clk 0:02:10.8]} 17. Nc3 {[%clk 0:02:00.3]} 17... Bf6 {[%clk 0:02:06.8]}
18. Nd5 {[%clk 0:01:51.4]} 18... Na5 {[%clk 0:02:05.9]} 19. Bd3 {[%clk
0:01:40.2]} 19... Nc6 {[%clk 0:01:56.4]} 20. Bb1 {[%clk 0:01:36.4]} 20... Nf7
{[%clk 0:01:52.6]} 21. Nf4 {[%clk 0:01:33.9]} 21... Ng5 {[%clk 0:01:42.7]} 22.
Qg3 {[%clk 0:01:29.3]} 22... Ne7 {[%clk 0:01:44]} 23. h4 {[%clk 0:01:24]} 23...
Ne4 {[%clk 0:01:37]} 24. Bxe4 {[%clk 0:01:24.2]} 24... fxe4 {[%clk 0:01:38.9]}
25. Ne6 {[%clk 0:01:25.5]} 25... Qd5 {[%clk 0:01:39.5]} 26. Nxc7 {[%clk
0:01:20.4]} 26... Qxa2 {[%clk 0:01:37.4]} 27. Nxa8 {[%clk 0:01:21.3]} 27... Rxa8
{[%clk 0:01:38.7]} 28. d5 {[%clk 0:01:16.5]} 28... Nxd5 {[%clk 0:01:36]} 29. Qg4
{[%clk 0:01:07.4]} 29... Qc4 {[%clk 0:00:48.9]} 30. h5 {[%clk 0:01:05.2]} 30...
Ne7 {[%clk 0:00:35]} 31. hxg6+ {[%clk 0:01:04.5]} 31... Kg8 {[%clk 0:00:36.5]}
32. Rc1 {[%clk 0:00:58.1]} 32... Qb5 {[%clk 0:00:23.6]} 33. Qe6+ {[%clk
0:00:54.2]} 33... Kh8 {[%clk 0:00:22.5]} 34. Rc5 {[%clk 0:00:52.7]} 1-0